fUSD/lending_fUSD_20250606
["ID","MTS","AMOUNT","RATE_DAILY","PERIOD"]
[364815767,1749250246104,-15473.28052201,0.00027549,2]
[364815768,1749250246863,-210.0,0.00025855,2]
[364815769,1749250246872,-125.6599995,0.00026981,2]
[364815770,1749250246882,-1152.84905356,0.00026981,2]
[364815771,1749250414656,642.69674143,0.0003,120]
[364815772,1749250582605,200.0,0.00035616,120]
[364815774,1749250817554,155.32,0.00013699,2]
[364815775,1749250831854,153.6,0.0003516,120]
[364815777,1749250852675,1746.96139057,0.000356,120]
[364815778,1749250901653,500.0,0.0003561,120]
[364815779,1749250997760,-370.0,0.00026518,30]
[364815780,1749251057277,-0.42,0.00026518,30]
[364815781,1749251057648,-600.0,0.00027397,30]
[364815782,1749251065683,351.0,0.00035616,120]
[364815783,1749251085658,-200.0,0.00027561,30]
[364815784,1749251092134,-400.0,0.00027561,30]
[364815785,1749251127422,-500.63916112,0.000259,14]
[364815786,1749251127459,-499.36083888,0.00026348,14]
[364815809,1749251432913,-155.32,0.00020187,2]
[364815811,1749251432923,-1000.0,0.00023521,2]
[364815813,1749251432932,-907.04,0.00023797,2]
[364815815,1749251432944,-152.0,0.00023894,3]
[364815818,1749251432954,-500.0,0.00023945,2]
[364815819,1749251432964,-206.0,0.00024132,2]
[364815821,1749251432973,-150.0,0.00024802,2]
[364815823,1749251432982,-150.0,0.00024806,2]
[364815825,1749251432991,-150.0,0.00024852,2]
[364815827,1749251433001,-150.0,0.00024885,2]
[364815829,1749251433010,-150.0,0.00024885,2]
[364815831,1749251433020,-150.0,0.00024895,2]
[364815833,1749251433030,-150.0,0.00024947,2]
[364815835,1749251433040,-150.0,0.00025182,2]
[364815837,1749251433050,-150.0,0.00025328,2]
[364815839,1749251433059,-525.59,0.00025375,2]
[364815841,1749251433069,-150.0,0.00025384,2]
[364815843,1749251433078,-150.0,0.00025408,7]
[364815845,1749251433088,-1000.0,0.00025411,2]
[364815847,1749251433098,-158.13,0.00025413,2]
[364815849,1749251433107,-200.0,0.00025414,2]
[364815851,1749251433116,-1000.0,0.00025414,2]
[364815853,1749251433126,-170.25,0.00025424,2]
[364815855,1749251433135,-150.0,0.00025433,2]
[364815857,1749251433145,-218.0,0.00025455,2]
[364815859,1749251433154,-150.0,0.00025456,2]
[364815861,1749251433164,-150.0,0.00025456,2]
[364815863,1749251433173,-150.0,0.00025585,2]
[364815865,1749251433183,-150.0,0.00025649,2]
[364815867,1749251433192,-1000.0,0.00025667,2]
[364815869,1749251433202,-159.0,0.00025667,2]
[364815871,1749251433211,-152.0,0.00025679,4]
[364815873,1749251433220,-250.0,0.0002574,2]
[364815874,1749251433230,-150.0,0.0002578,2]
[364815876,1749251433239,-150.0,0.00025791,2]
[364815878,1749251433249,-166.33,0.00025831,2]
[364815880,1749251433258,-467.30582798,0.000259,14]
[364815882,1749251433268,-907.04,0.00026061,2]
[364815884,1749251433278,-150.0,0.00026198,2]
[364815886,1749251433287,-150.0,0.00026252,2]
[364815888,1749251433296,-150.0,0.00026268,2]
[364815890,1749251433305,-200.0,0.00026278,2]
[364815892,1749251433315,-2264.30370802,0.00026316,2]
[364815894,1749251433327,-299.49424878,0.00026316,2]
[364815896,1749251433339,-21336.2020432,0.00026316,2]
[364815898,1749251433348,-467.30582778,0.00026348,14]
[364815900,1749251433357,-158.13,0.00026366,2]
[364815902,1749251433366,-217.50445255,0.00026381,2]
[364815904,1749251433375,-150.0,0.00026441,2]
[364815906,1749251433384,-150.0,0.00026455,2]
[364815908,1749251433393,-150.0,0.00026461,2]
[364815910,1749251433401,-150.0,0.00026492,2]
[364815912,1749251433411,-1000.0,0.000265,9]
[364815914,1749251433420,-2100.0,0.000266,9]
[364815916,1749251433431,-150.0,0.00026655,2]
[364815918,1749251433440,-155.32,0.00026676,2]
[364815920,1749251433449,-206.0,0.00026694,6]
[364815922,1749251433458,-3100.0,0.000267,9]
[364815923,1749251433467,-467.30582778,0.00026797,15]
[364815925,1749251433476,-4200.0,0.000268,9]
[364815927,1749251433486,-151.0,0.00026833,2]
[364815930,1749251433501,-1000.0,0.00026833,2]
[364815932,1749251433514,-500.0,0.00026833,2]
[364815934,1749251433527,-500.0,0.00026833,2]
[364815937,1749251433539,-633.26835985,0.00026833,2]
[364815939,1749251433549,-207.4,0.00026833,2]
[364815941,1749251433560,-5300.0,0.000269,9]
[364815943,1749251433573,-944.0,0.00026906,2]
[364815945,1749251433585,-636.0,0.00026906,2]
[364815948,1749251433597,-400.75210223,0.00026906,2]
[364815951,1749251433616,-400.24789777,0.00026906,2]
[364815953,1749251433629,-371.18094168,0.00026906,2]
[364816109,1749251440751,-185.81905832,0.00026906,2]
[364816110,1749251440761,-438.53270529,0.00026906,2]
[364816111,1749251440772,-835.46729471,0.00026906,2]
[364816112,1749251440782,-1999.0,0.00026906,2]
[364816113,1749251440791,-926.0,0.00026906,2]
[364816114,1749251440801,-589.0,0.00026906,2]
[364816115,1749251440810,-1254.0,0.00026906,2]
[364816116,1749251440820,-155.0,0.00026906,2]
[364816117,1749251440829,-4081.0,0.00026906,2]
[364816118,1749251440839,-852.0,0.00026906,2]
[364816119,1749251440848,-883.0,0.00026906,2]
[364816120,1749251440859,-7017.0,0.00026906,2]
[364816121,1749251440872,-150.0,0.00026923,2]
[364816122,1749251440882,-7839.468406,0.00026981,2]
[364816123,1749251440891,-150.0,0.00026981,2]
[364816124,1749251440901,-1343.41,0.00027,2]
[364816125,1749251440911,-537.0,0.00027,7]
[364816126,1749251440921,-341.05,0.00027051,2]
[364816127,1749251440931,-150.0,0.00027084,2]
[364816128,1749251440942,-10148.51906081,0.00027086,2]
[364816129,1749251440953,-150.0,0.00027129,2]
[364816130,1749251440963,-500.0,0.00027165,2]
[364816131,1749251440972,-150.0,0.00027169,2]
[364816132,1749251440982,-150.0,0.00027173,2]
[364816133,1749251440992,-165.94074485,0.0002719,2]
[364816134,1749251441001,-5651.85397949,0.0002719,2]
[364816135,1749251441010,-6212.88401403,0.000272,2]
[364816136,1749251441019,-5651.85397942,0.00027219,2]
[364816137,1749251441029,-467.30582778,0.00027245,16]
[364816138,1749251441038,-5651.85397942,0.00027249,2]
[364816139,1749251441048,-152.39539604,0.00027252,2]
[364816140,1749251441057,-10148.48,0.0002726,2]
[364816141,1749251441066,-14114.37596301,0.00027276,2]
[364816143,1749251441075,-5651.85397942,0.00027278,2]
[364816144,1749251441084,-150.0,0.00027285,2]
[364816145,1749251441093,-414.41905639,0.00027286,2]
[364816146,1749251441102,-547.3783488,0.00027286,2]
[364816147,1749251441111,-3166.6549382,0.00027286,2]
[364816148,1749251441120,-288.47319772,0.00027286,2]
[364816149,1749251441129,-577.13,0.00027287,2]
[364816150,1749251441138,-1000.0,0.00027287,2]
[364816151,1749251441147,-165.94074485,0.00027287,2]
[364816152,1749251441157,-139467.42748781,0.0002729,2]
[364816153,1749251441166,-162.5322982,0.00027292,2]
[364816154,1749251441175,-5000.0,0.00027297,2]
[364816155,1749251441185,-150.0,0.00027299,2]
[364816156,1749251441195,-739.52649533,0.000273,2]
[364816157,1749251441205,-5651.85397942,0.00027307,2]
[364816158,1749251441215,-302.98,0.00027314,2]
[364816159,1749251441226,-301.09,0.00027314,2]
[364816160,1749251441235,-303.6,0.00027314,2]
[364816161,1749251441245,-304.87,0.00027314,2]
[364816162,1749251441254,-305.0,0.00027314,2]
[364816163,1749251441263,-302.59,0.00027314,2]
[364816164,1749251441272,-302.02,0.00027314,2]
[364816165,1749251441282,-303.49,0.00027314,2]
[364816166,1749251441291,-302.91,0.00027314,2]
[364816167,1749251441301,-301.37,0.00027314,2]
[364816168,1749251441311,-304.05,0.00027314,2]
[364816169,1749251441320,-150.0,0.00027314,2]
[364816170,1749251441330,-158.13,0.00027319,2]
[364816171,1749251441339,-10923.8587219,0.00027328,2]
[364816172,1749251441348,-5651.85397942,0.00027337,2]
[364816173,1749251441358,-150.0,0.00027342,2]
[364816174,1749251441367,-10923.8587219,0.00027363,2]
[364816175,1749251441377,-5651.85397942,0.00027366,2]
[364816176,1749251441387,-150.0,0.0002737,2]
[364816177,1749251441396,-500.0,0.00027373,2]
[364816178,1749251441406,-384.47612505,0.00027376,2]
[364816179,1749251441415,-384.47612505,0.00027376,2]
[364816180,1749251441424,-10923.8587219,0.00027376,2]
[364816181,1749251441434,-22575.43103827,0.00027376,7]
[364816182,1749251441443,-10923.8587219,0.00027376,2]
[364816183,1749251441453,-240324.891882,0.00027377,2]
[364816184,1749251441462,-500.0,0.00027379,2]
[364816185,1749251441471,-500.0,0.00027379,2]
[364816186,1749251441481,-500.0,0.00027379,2]
[364816187,1749251441490,-500.0,0.00027379,2]
[364816188,1749251441500,-500.0,0.00027379,2]
[364816189,1749251441509,-500.0,0.00027379,2]
[364816190,1749251441519,-500.0,0.00027379,2]
[364816191,1749251441528,-500.0,0.00027379,2]
[364816192,1749251441538,-500.0,0.00027379,2]
[364816193,1749251441548,-500.0,0.00027379,2]
[364816194,1749251441557,-500.0,0.00027379,2]
[364816195,1749251441567,-250.00512775,0.00027379,2]
[364816196,1749251441576,-500.0,0.00027379,2]
[364816197,1749251441586,-500.0,0.00027379,2]
[364816198,1749251441595,-500.0,0.00027379,2]
[364816199,1749251441605,-500.0,0.00027379,2]
[364816200,1749251441614,-500.0,0.00027379,2]
[364816201,1749251441623,-500.0,0.00027379,2]
[364816202,1749251441633,-500.0,0.00027379,2]
[364816203,1749251441642,-500.0,0.00027379,2]
[364816204,1749251441651,-500.0,0.00027379,2]
[364816205,1749251441662,-500.0,0.00027379,2]
[364816206,1749251441672,-500.0,0.00027379,2]
[364816207,1749251441681,-500.0,0.00027379,2]
[364816208,1749251441691,-500.0,0.00027379,2]
[364816209,1749251441701,-508.96169769,0.00027379,2]
[364816210,1749251441711,-500.0,0.00027379,2]
[364816211,1749251441721,-500.0,0.00027379,2]
[364816212,1749251441730,-500.0,0.00027379,2]
[364816213,1749251441740,-148243.23808754,0.00027385,7]
[364816214,1749251441753,-300.91054976,0.00027385,7]
[364816215,1749251443572,-608.12,0.00027296,2]
[364816224,1749251448409,1552.54,0.00035616,120]
[364816225,1749251480198,250.0,0.00019,2]
[364816226,1749251488597,200.0,0.00035616,120]
[364816227,1749251510989,257.98727884,0.00035616,120]
[364816228,1749251575463,-1000.0,0.00025926,2]
[364816229,1749251575487,-2764.86,0.00026402,2]
[364816230,1749251575512,-324.11,0.00026449,30]
[364816231,1749251575537,-1000.0,0.0002719,2]
[364816232,1749251575560,-1650.0296,0.0002719,2]
[364816233,1749251575586,-419.5712,0.00027197,2]
[364816234,1749251575611,-177.0,0.000272,2]
[364816235,1749251575636,-150.0,0.00027264,2]
[364816236,1749251575663,-5000.0,0.00027286,2]
[364816237,1749251575687,-13506.25596299,0.00027296,2]
[364816238,1749251575713,-150.0,0.000273,2]
[364816239,1749251575736,-9999.99,0.000273,2]
[364816240,1749251575760,-14114.37596299,0.00027316,2]
[364816241,1749251575783,-1546.84,0.00027316,2]
[364816242,1749251575806,-1412.56,0.00027316,2]
[364816243,1749251575830,-393.1,0.00027316,2]
[364816244,1749251575857,-9999.99,0.00027316,2]
[364816245,1749251575883,-14114.37596299,0.00027335,2]
[364816246,1749251575914,-150.0,0.00027352,2]
[364816247,1749251575939,-14114.37596299,0.00027355,2]
[364816248,1749251575963,-298.46,0.00027355,2]
[364816249,1749251575987,-3062.04,0.00027355,2]
[364816250,1749251576012,-3555.73,0.00027355,2]
[364816251,1749251576034,-7275.77,0.00027355,2]
[364816252,1749251576060,-150.0,0.00027359,2]
[364816253,1749251576082,-151.0,0.00027369,2]
[364816254,1749251576106,-891.7106837,0.00027369,2]
[364816255,1749251576130,-207.4,0.00027369,2]
[364816256,1749251576155,-500.0,0.00027373,2]
[364816257,1749251576178,-500.0,0.00027373,2]
[364816258,1749251576205,-14114.37596299,0.00027375,2]
[364816259,1749251576229,-227.78924837,0.00027384,2]
[364816260,1749251576255,-267.44124097,0.00027384,2]
[364816261,1749251576278,-333.94856234,0.00027384,2]
[364816262,1749251576302,-626.84761232,0.00027384,2]
[364816263,1749251576327,-500.0,0.00027384,2]
[364816264,1749251576351,-458.66814734,0.00027384,2]
[364816265,1749251576377,-500.0,0.00027384,2]
[364816266,1749251576404,-500.0,0.00027384,2]
[364816267,1749251576430,-500.0,0.00027384,2]
[364816268,1749251576456,-500.0,0.00027384,2]
[364816269,1749251576481,-334.32907752,0.00027384,2]
[364816270,1749251576510,-500.0,0.00027384,2]
[364816271,1749251576535,-500.0,0.00027384,2]
[364816272,1749251576560,-500.0,0.00027384,2]
[364816273,1749251576585,-425.00051277,0.00027384,2]
[364816274,1749251576611,-500.0,0.00027384,2]
[364816275,1749251576639,-500.0,0.00027384,2]
[364816276,1749251576664,-304.62153669,0.00027384,2]
[364816277,1749251576690,-500.0,0.00027384,2]
[364816278,1749251576821,-195.28868433,0.00027384,2]
[364816279,1749251576846,-490.6390228,0.00027384,2]
[364816280,1749251576871,-500.0,0.00027384,2]
[364816281,1749251576897,-500.0,0.00027384,2]
[364816282,1749251576927,-340.33207969,0.00027384,2]
[364816283,1749251576953,-500.0,0.00027384,2]
[364816284,1749251576978,-500.0,0.00027384,2]
[364816285,1749251577004,-500.0,0.00027384,2]
[364816286,1749251577030,-500.0,0.00027384,2]
[364816287,1749251577055,-500.0,0.00027384,2]
[364816288,1749251577090,-201.5582933,0.00027384,2]
[364816289,1749251577118,-500.0,0.00027384,2]
[364816290,1749251577143,-150.0,0.00027384,2]
[364816291,1749251577169,-150.0,0.00027384,2]
[364816292,1749251577193,-150.0,0.00027384,2]
[364816293,1749251577219,-11287.71551913,0.00027385,7]
[364816294,1749251577245,-501861.89916378,0.00027385,7]
[364816296,1749251897476,231.24,0.00013699,2]
[364816297,1749251914421,2000.0,0.0003561,120]
[364816298,1749251916213,2000.0,0.0003561,120]
[364816299,1749251917349,2000.0,0.0003561,120]
[364816300,1749251918366,2000.0,0.0003561,120]
[364816301,1749251923733,2000.0,0.0003561,120]
[364816302,1749251937104,2000.0,0.0003561,120]
[364816303,1749251950139,1000.0,0.0003561,120]
[364816304,1749251956605,612.0,0.0003561,120]
[364816305,1749252098137,1334.48,0.00035616,120]
[364816306,1749252119221,1000.0,0.0003561,120]
[364816307,1749252127312,1000.0,0.0003561,120]
[364816308,1749252182894,1000.0,0.0003561,120]
[364816309,1749252190553,1000.0,0.0003561,120]
[364816310,1749252197782,1000.0,0.0003561,120]
[364816311,1749252205766,1000.0,0.0003561,120]
[364816312,1749252213721,1000.0,0.0003561,120]
[364816313,1749252225337,1000.0,0.0003561,120]
[364816314,1749252233130,1000.0,0.0003561,120]
[364816315,1749252240462,1000.0,0.0003561,120]
[364816316,1749252247517,1000.0,0.0003561,120]
[364816317,1749252254564,1000.0,0.0003561,120]
[364816318,1749252261364,1000.0,0.0003561,120]
[364816319,1749252269134,1000.0,0.0003561,120]
[364816320,1749252275788,1000.0,0.0003561,120]
[364816321,1749252279318,253.32,0.00013699,2]
[364816322,1749252279373,253.32,0.00013699,2]
[364816323,1749252280380,253.32,0.00013699,2]
[364816324,1749252280729,253.32,0.00013699,2]
[364816325,1749252281031,253.32,0.00013699,2]
[364816326,1749252281428,253.32,0.00013699,2]
[364816327,1749252281835,253.32,0.00013699,2]
[364816328,1749252282147,253.32,0.00013699,2]
[364816329,1749252282363,1000.0,0.0003561,120]
[364816330,1749252282527,253.32,0.00013699,2]
[364816331,1749252282816,253.32,0.00013699,2]
[364816332,1749252283220,253.32,0.00013699,2]
[364816333,1749252283598,253.32,0.00013699,2]
[364816334,1749252283926,253.32,0.00013699,2]
[364816335,1749252284452,253.32,0.00013699,2]
[364816336,1749252284814,222.28,0.00013699,2]
[364816337,1749252284838,31.04,0.00013699,2]
[364816338,1749252285197,253.32,0.00013699,2]
[364816339,1749252285543,253.32,0.00013699,2]
[364816340,1749252285925,253.32,0.00013699,2]
[364816341,1749252286243,253.32,0.00013699,2]
[364816342,1749252286762,253.3578958,0.00013699,2]
[364816343,1749252289688,1000.0,0.0003561,120]
[364816344,1749252297182,1000.0,0.0003561,120]
[364816345,1749252303799,1000.0,0.0003561,120]
[364816346,1749252312006,1000.0,0.0003561,120]
[364816347,1749252318837,1000.0,0.0003561,120]
[364816348,1749252328665,1000.0,0.0003561,120]
[364816349,1749252336265,1000.0,0.0003561,120]
[364816350,1749252342945,1000.0,0.0003561,120]
[364816351,1749252349552,1000.0,0.0003561,120]
[364816352,1749252362741,1000.0,0.0003561,120]
[364816353,1749252375047,1000.0,0.0003561,120]
[364816354,1749252408481,212.9323,0.0003561,120]
[364816355,1749252418096,200.0,0.00035616,120]
[364816358,1749252432254,2702.3221042,0.00015,2]
[364816359,1749252432292,450.34652835,0.00015,2]
[364816360,1749252500936,1876.59063104,0.0001,2]
[364816361,1749252502816,205.66734032,7.888e-05,2]
[364816362,1749252510667,1063.85721617,0.000149,2]
[364816363,1749252515065,403.53828412,0.000151,2]
[364816364,1749252515090,4000.0,0.000151,2]
[364816365,1749252515115,61.76171488,0.000151,2]
[364816366,1749252515193,260.67706153,0.000107,2]
[364816368,1749252515695,492.5834205,0.000154,2]
[364816372,1749252519473,3184.97780309,0.00013368,2]
[364816373,1749252519497,4000.0,0.00013368,2]
[364816374,1749252519521,1196.48937074,0.00013368,2]
[364816387,1749252551117,1000.0,0.00035616,120]
[364816389,1749252554257,1000.0,0.00035616,120]
[364816390,1749252554635,1000.0,0.00035616,120]
[364816391,1749252554914,1000.0,0.00035616,120]
[364816392,1749252555411,1000.0,0.00035616,120]
[364816394,1749252555912,1000.0,0.00035616,120]
[364816395,1749252556182,1000.0,0.00035616,120]
[364816396,1749252556766,1000.0,0.00035616,120]
[364816397,1749252557309,1000.0,0.00035616,120]
[364816398,1749252557841,1000.0,0.00035616,120]
[364816399,1749252558168,1000.0,0.00035616,120]
[364816400,1749252558714,1000.0,0.00035616,120]
[364816401,1749252559015,1000.0,0.00035616,120]
[364816403,1749252559374,1000.0,0.00035616,120]
[364816404,1749252559906,1000.0,0.00035616,120]
[364816405,1749252560551,1000.0,0.00035616,120]
[364816407,1749252561086,1000.0,0.00035616,120]
[364816408,1749252561689,1000.0,0.00035616,120]
[364816422,1749252574069,10000.0,0.00035616,120]
[364816423,1749252574886,10000.0,0.00035616,120]
[364816424,1749252575191,10000.0,0.00035616,120]
[364816425,1749252575707,10000.0,0.00035616,120]
[364816426,1749252576258,10000.0,0.00035616,120]
[364816427,1749252577041,10000.0,0.00035616,120]
[364816428,1749252577369,10000.0,0.00035616,120]
[364816429,1749252577988,10000.0,0.00035616,120]
[364816430,1749252578499,10000.0,0.00035616,120]
[364816431,1749252578846,10000.0,0.00035616,120]
[364816432,1749252579143,10000.0,0.00035616,120]
[364816433,1749252579630,10000.0,0.00035616,120]
[364816434,1749252579969,10000.0,0.00035616,120]
[364816435,1749252580359,10000.0,0.00035616,120]
[364816436,1749252580703,10000.0,0.00035616,120]
[364816437,1749252581164,10000.0,0.00035616,120]
[364816438,1749252581385,10000.0,0.00035616,120]
[364816439,1749252581918,10000.0,0.00035616,120]
[364816440,1749252582263,10000.0,0.00035616,120]
[364816441,1749252582760,10000.0,0.00035616,120]
[364816442,1749252583389,10000.0,0.00035616,120]
[364816443,1749252583497,10000.0,0.00035616,120]
[364816445,1749252599442,1000.0,0.00035616,120]
[364816446,1749252599755,1000.0,0.00035616,120]
[364816447,1749252600358,1000.0,0.00035616,120]
[364816448,1749252600704,1000.0,0.00035616,120]
[364816449,1749252601563,1000.0,0.00035616,120]
[364816450,1749252603426,1000.0,0.00035616,120]
[364816451,1749252603782,1000.0,0.00035616,120]
[364816452,1749252604718,1000.0,0.00035616,120]
[364816453,1749252604943,1000.0,0.00035616,120]
[364816556,1749252632840,-300.0,0.00019399,2]
[364816558,1749252632850,-1200.0,0.00019399,2]
[364816560,1749252632859,-7419.30053996,0.000194,2]
[364816562,1749252632870,-1240.98204089,0.000194,2]
[364816564,1749252632881,-2240.01795911,0.000194,2]
[364816566,1749252632892,-886.0,0.000194,2]
[364816576,1749252632973,-16594.77247597,0.000194,2]
[364816578,1749252632982,-1000.0,0.000198,7]
[364816580,1749252632992,-300.0,0.000199,7]
[364816582,1749252633001,-2000.0,0.000199,7]
[364816584,1749252633011,-157.96100876,0.000199,2]
[364816586,1749252633023,-163.16522894,0.000199,2]
[364816588,1749252633033,-207.2095282,0.000199,2]
[364816590,1749252633045,-10476.16719662,0.000199,2]
[364816592,1749252633056,-500.0,0.00019973,2]
[364816594,1749252633066,-500.0,0.00019973,2]
[364816596,1749252633077,-500.0,0.00019973,2]
[364816598,1749252633087,-500.0,0.00019973,2]
[364816600,1749252633096,-500.0,0.00019973,2]
[364816602,1749252633107,-500.0,0.00019973,2]
[364816604,1749252633117,-500.0,0.00019973,2]
[364816606,1749252633127,-500.0,0.00019973,2]
[364816608,1749252633136,-500.0,0.00019999,2]
[364816610,1749252633146,-500.0,0.00019999,2]
[364816612,1749252633156,-244.61758814,0.00019999,2]
[364816614,1749252633167,-500.0,0.00019999,2]
[364816616,1749252633177,-500.0,0.00019999,2]
[364816618,1749252633186,-422.26003028,0.00019999,2]
[364816620,1749252633196,-500.0,0.00019999,2]
[364816622,1749252633205,-186.206815,0.00019999,2]
[364816624,1749252633215,-500.0,0.00019999,2]
[364816626,1749252633225,-500.0,0.00019999,2]
[364816627,1749252633234,-500.0,0.00019999,2]
[364816628,1749252633243,-500.0,0.00019999,2]
[364816629,1749252633253,-500.0,0.00019999,2]
[364816630,1749252633263,-500.0,0.00019999,2]
[364816631,1749252633272,-500.0,0.00019999,2]
[364816632,1749252633281,-500.0,0.00019999,2]
[364816633,1749252633291,-500.0,0.00019999,2]
[364816634,1749252633300,-500.0,0.00019999,2]
[364816635,1749252633309,-500.0,0.00019999,2]
[364816636,1749252633318,-500.0,0.00019999,2]
[364816637,1749252633328,-500.0,0.00019999,2]
[364816638,1749252633337,-500.0,0.00019999,2]
[364816639,1749252633348,-500.0,0.00019999,2]
[364816641,1749252633358,-500.0,0.00019999,2]
[364816643,1749252633367,-500.0,0.00019999,2]
[364816646,1749252633377,-500.0,0.00019999,2]
[364816648,1749252633387,-500.0,0.00019999,2]
[364816649,1749252633396,-308.06552792,0.00019999,2]
[364816651,1749252633405,-500.0,0.00019999,2]
[364816653,1749252633415,-500.0,0.00019999,2]
[364816655,1749252633424,-499.28032,0.00019999,2]
[364816657,1749252633434,-500.0,0.00019999,2]
[364816660,1749252633444,-500.0,0.00019999,2]
[364816662,1749252633453,-250.0,0.00019999,2]
[364816664,1749252633464,-500.0,0.00019999,2]
[364816666,1749252633475,-500.0,0.00019999,2]
[364816668,1749252633484,-500.0,0.00019999,2]
[364816669,1749252633494,-24551.41289823,0.0002,2]
[364816674,1749252633532,-3642.0335868,0.0002,2]
[364816677,1749252633549,-1062.39822366,0.0002,2]
[364817068,1749252637638,-220.0,0.00019981,2]
[364817070,1749252637648,-3051.591964,0.0002,2]
[364817088,1749252637840,-1000.0,0.0002,2]
[364817268,1749252639689,-1071171.70062928,0.0002,2]
[364817270,1749252639698,-5779.76196,0.0002,2]
[364817272,1749252639707,-5779.76196,0.0002,2]
[364817274,1749252639716,-5779.76196,0.0002,2]
[364817276,1749252639726,-5779.76196,0.0002,2]
[364817278,1749252639735,-1853.76413704,0.00020087,2]
[364817280,1749252639745,-231.24,0.00020187,2]
[364817282,1749252639755,-602.98178778,0.00020428,2]
[364817284,1749252639763,-10476.16719659,0.00020438,2]
[364817286,1749252639772,-437.45115409,0.00020521,2]
[364817288,1749252639782,-500.0,0.00020521,2]
[364817290,1749252639792,-500.0,0.00020521,2]
[364817292,1749252639801,-1000.0,0.00020521,2]
[364817294,1749252639811,-500.0,0.00020521,2]
[364817296,1749252639819,-1853.76413698,0.00020887,2]
[364817298,1749252639829,-5779.76197,0.000209,2]
[364817300,1749252639838,-10476.16719659,0.00020976,2]
[364817302,1749252639847,-1500.0,0.00021068,2]
[364817304,1749252639857,-157.96100869,0.00021121,2]
[364817306,1749252639866,-1600.0,0.00021239,2]
[364817308,1749252639875,-10476.16719659,0.00021513,2]
[364817311,1749252639884,-1961.58275095,0.00021616,2]
[364817313,1749252639893,-1853.76413698,0.00021687,2]
[364817315,1749252639902,-700.0,0.000219,7]
[364817317,1749252639912,-200.0,0.00022025,2]
[364817319,1749252639921,-10476.16719659,0.00022051,2]
[364817321,1749252639931,-336.53,0.000221,30]
[364817323,1749252639940,-5779.76196,0.0002215,2]
[364817325,1749252639949,-157.96100869,0.00022342,2]
[364817327,1749252639959,-163.16522892,0.00022344,2]
[364817329,1749252639968,-1853.76413698,0.00022488,2]
[364817331,1749252639978,-10476.16719659,0.00022589,2]
[364817333,1749252639987,-163.87,0.00022645,2]
[364817335,1749252639996,-292.51987053,0.00023,7]
[364817337,1749252640006,-10476.16719659,0.00023127,2]
[364817339,1749252640015,-1853.76413698,0.00023288,2]
[364817341,1749252640025,-157.96100869,0.00023563,2]
[364817343,1749252640034,-188.86,0.00023605,2]
[364817345,1749252640044,-10476.16719659,0.00023664,2]
[364817347,1749252640053,-932.93,0.00023964,2]
[364817349,1749252640063,-5000.00964813,0.00024,5]
[364817351,1749252640073,-1853.76413698,0.00024088,2]
[364817353,1749252640083,-1000.0,0.00024088,2]
[364817355,1749252640092,-1000.0,0.00024088,2]
[364817357,1749252640102,-1000.0,0.00024088,2]
[364817359,1749252640111,-1000.0,0.00024088,2]